[Event "Titled Tuesday Blitz November 01 Late 2022"]
[White "Predke, Alexandr"]
[Black "Jobava, Baadur"]
[WhiteFideId "24107581"]
[BlackFideId "13601520"]
[WhiteElo "2881"]
[BlackElo "3075"]
[Result "0-1"]
[Round "09"]
[TimeControl "180+1"]
[Date "2022.11.01"]
[WhiteClock "0:00:03"]
[BlackClock "0:00:38"]

1. Nf3 {[%clk 0:02:56]}  d5 {[%clk 0:02:53]} 2. g3 {[%clk 0:02:56]}  c6 {[%clk 0:02:54]} 3. Bg2 {[%clk 0:02:55]}  Nf6 {[%clk 0:02:54]} 4. O-O {[%clk 0:02:55]}  Bf5 {[%clk 0:02:55]} 5. c4 {[%clk 0:02:52]}  e6 {[%clk 0:02:55]} 6. Qb3 {[%clk 0:02:51]}  Qc8 {[%clk 0:02:56]} 7. d4 {[%clk 0:02:45]}  Be7 {[%clk 0:02:55]} 8. Bf4 {[%clk 0:02:42]}  Nbd7 {[%clk 0:02:53]} 9. Nc3 {[%clk 0:02:18]}  h6 {[%clk 0:02:53]} 10. Rac1 {[%clk 0:02:15]}  O-O {[%clk 0:02:53]} 11. Rfd1 {[%clk 0:02:08]}  Nb6 {[%clk 0:02:53]} 12. Ne5 {[%clk 0:01:55]}  Rd8 {[%clk 0:02:49]} 13. a4 {[%clk 0:01:38]}  Ng4 {[%clk 0:02:22]} 14. cxd5 {[%clk 0:01:27]}  exd5 {[%clk 0:02:23]} 15. a5 {[%clk 0:01:27]}  Nxe5 {[%clk 0:02:21]} 16. dxe5 {[%clk 0:01:27]}  Nc4 {[%clk 0:02:16]} 17. e4 {[%clk 0:01:26]}  Bg4 {[%clk 0:02:17]} 18. exd5 {[%clk 0:01:25]}  Bxd1 {[%clk 0:02:16]} 19. Rxd1 {[%clk 0:01:07]}  Nxa5 {[%clk 0:02:11]} 20. Qa4 {[%clk 0:00:54]}  b6 {[%clk 0:02:11]} 21. dxc6 {[%clk 0:00:20]}  Rxd1+ {[%clk 0:02:12]} 22. Qxd1 {[%clk 0:00:20]}  Qe6 {[%clk 0:02:06]} 23. Bd5 {[%clk 0:00:19]}  Qg6 {[%clk 0:02:02]} 24. Qe2 {[%clk 0:00:15]}  Nxc6 {[%clk 0:01:41]} 25. e6 {[%clk 0:00:14]}  Rc8 {[%clk 0:01:42]} 26. Qc4 {[%clk 0:00:04]}  Bc5 {[%clk 0:01:34]} 27. exf7+ {[%clk 0:00:04]}  Kf8 {[%clk 0:01:34]} 28. Be6 {[%clk 0:00:03]}  Rd8 {[%clk 0:01:29]} 29. Ne4 {[%clk 0:00:02]}  Nd4 {[%clk 0:01:20]} 30. Nxc5 {[%clk 0:00:02]}  Ke7 {[%clk 0:01:06]} 31. Bd5 {[%clk 0:00:02]}  Qb1+ {[%clk 0:00:49]} 32. Kg2 {[%clk 0:00:02]}  Qf5 {[%clk 0:00:50]} 33. Qxd4 {[%clk 0:00:02]}  Qxd5+ {[%clk 0:00:50]} 34. Qxd5 {[%clk 0:00:02]}  Rxd5 {[%clk 0:00:51]} 35. Ne4 {[%clk 0:00:02]}  Kxf7 {[%clk 0:00:51]} 36. Nd6+ {[%clk 0:00:02]}  Ke6 {[%clk 0:00:52]} 37. Nc8 {[%clk 0:00:03]}  Rd7 {[%clk 0:00:51]} 38. Be3 {[%clk 0:00:03]}  Rc7 {[%clk 0:00:48]} 39. Nxa7 {[%clk 0:00:03]}  Rxa7 {[%clk 0:00:48]} 40. Bxb6 {[%clk 0:00:04]}  Ra4 {[%clk 0:00:48]} 41. Be3 {[%clk 0:00:04]}  Rb4 {[%clk 0:00:49]} 42. Bc1 {[%clk 0:00:03]}  Kd5 {[%clk 0:00:48]} 43. h4 {[%clk 0:00:03]}  Ke4 {[%clk 0:00:48]} 44. h5 {[%clk 0:00:03]}  Kf5 {[%clk 0:00:47]} 45. Kh3 {[%clk 0:00:04]}  Rb3 {[%clk 0:00:47]} 46. Bd2 {[%clk 0:00:02]}  Rxb2 {[%clk 0:00:47]} 47. Bc3 {[%clk 0:00:02]}  Rb7 {[%clk 0:00:46]} 48. f3 {[%clk 0:00:02]}  Rc7 {[%clk 0:00:44]} 49. Bd2 {[%clk 0:00:02]}  Rc2 {[%clk 0:00:42]} 50. g4+ {[%clk 0:00:02]}  Ke5 {[%clk 0:00:42]} 51. Be1 {[%clk 0:00:02]}  Kf4 {[%clk 0:00:42]} 52. Bg3+ {[%clk 0:00:01]}  Kxf3 {[%clk 0:00:42]} 53. Be5 {[%clk 0:00:02]}  Rc1 {[%clk 0:00:40]} 54. Kh2 {[%clk 0:00:01]}  Kxg4 {[%clk 0:00:40]} 55. Bxg7 {[%clk 0:00:02]}  Rc6 {[%clk 0:00:40]} 56. Be5 {[%clk 0:00:02]}  Rc5 {[%clk 0:00:40]} 57. Bd6 {[%clk 0:00:02]}  Rxh5+ {[%clk 0:00:41]} 58. Kg2 {[%clk 0:00:02]}  Rd5 {[%clk 0:00:42]} 59. Bc7 {[%clk 0:00:02]}  Rd2+ {[%clk 0:00:42]} 60. Kh1 {[%clk 0:00:02]}  Kh3 {[%clk 0:00:42]} 61. Kg1 {[%clk 0:00:02]}  h5 {[%clk 0:00:42]} 62. Bb8 {[%clk 0:00:03]}  Rg2+ {[%clk 0:00:41]} 63. Kf1 {[%clk 0:00:02]}  Rg8 {[%clk 0:00:40]} 64. Bc7 {[%clk 0:00:02]}  Rg7 {[%clk 0:00:37]} 65. Bd6 {[%clk 0:00:02]}  Rd7 {[%clk 0:00:37]} 66. Bb8 {[%clk 0:00:01]}  Rd1+ {[%clk 0:00:36]} 67. Kf2 {[%clk 0:00:01]}  Rb1 {[%clk 0:00:37]} 68. Bc7 {[%clk 0:00:01]}  Kg4 {[%clk 0:00:38]} 69. Bd6 {[%clk 0:00:01]}  Rb6 {[%clk 0:00:36]} 70. Bc7 {[%clk 0:00:01]}  Rb2+ {[%clk 0:00:36]} 71. Kg1 {[%clk 0:00:01]}  Kf3 {[%clk 0:00:37]} 72. Kh1 {[%clk 0:00:01]}  Kg4 {[%clk 0:00:36]} 73. Bd6 {[%clk 0:00:01]}  Kh3 {[%clk 0:00:36]} 74. Kg1 {[%clk 0:00:02]}  Rd2 {[%clk 0:00:36]} 75. Bc7 {[%clk 0:00:02]}  Rd7 {[%clk 0:00:36]} 76. Bb8 {[%clk 0:00:03]}  Rf7 {[%clk 0:00:36]} 77. Be5 {[%clk 0:00:03]}  Kg4 {[%clk 0:00:35]} 78. Bd6 {[%clk 0:00:03]}  Kh3 {[%clk 0:00:35]} 79. Be5 {[%clk 0:00:03]}  Rb7 {[%clk 0:00:36]} 80. Bd6 {[%clk 0:00:03]}  Rb5 {[%clk 0:00:36]} 81. Bc7 {[%clk 0:00:03]}  Rb1+ {[%clk 0:00:36]} 82. Kf2 {[%clk 0:00:02]}  h4 {[%clk 0:00:36]} 83. Bd6 {[%clk 0:00:02]}  Rb7 {[%clk 0:00:36]} 84. Be5 {[%clk 0:00:02]}  Rf7+ {[%clk 0:00:36]} 85. Kg1 {[%clk 0:00:02]}  Rf5 {[%clk 0:00:37]} 86. Bd6 {[%clk 0:00:02]}  Rg5+ {[%clk 0:00:38]} 87. Kf2 {[%clk 0:00:01]}  Rd5 {[%clk 0:00:38]} 88. Bc7 {[%clk 0:00:02]}  Rd1 {[%clk 0:00:38]} 89. Bd6 {[%clk 0:00:03]}  Rxd6 {[%clk 0:00:38]} 0-1


[Site "https://www.chess.com"]

[Event "Titled Tuesday Blitz November 01 Late 2022"]
[White "Putnam, Liam"]
[Black "Salman, Pavel"]
[WhiteFideId "30938279"]
[BlackFideId "24153753"]
[WhiteElo "2082"]
[BlackElo "2187"]
[Result "1-0"]
[Round "09"]
[TimeControl "180+1"]
[Date "2022.11.02"]
[WhiteClock "0:01:07"]
[BlackClock "0:00:19"]

1. e4 {[%clk 0:03:00]}  c5 {[%clk 0:02:57]} 2. Nc3 {[%clk 0:03:01]}  e6 {[%clk 0:02:57]} 3. Nf3 {[%clk 0:02:56]}  a6 {[%clk 0:02:57]} 4. d4 {[%clk 0:02:56]}  cxd4 {[%clk 0:02:58]} 5. Nxd4 {[%clk 0:02:57]}  Qc7 {[%clk 0:02:58]} 6. Be2 {[%clk 0:02:55]}  b5 {[%clk 0:02:58]} 7. O-O {[%clk 0:02:54]}  Bb7 {[%clk 0:02:58]} 8. a3 {[%clk 0:02:54]}  Nf6 {[%clk 0:02:52]} 9. Qd3 {[%clk 0:02:50]}  Nc6 {[%clk 0:02:45]} 10. Nxc6 {[%clk 0:02:42]}  dxc6 {[%clk 0:02:46]} 11. f4 {[%clk 0:02:41]}  Bc5+ {[%clk 0:02:43]} 12. Kh1 {[%clk 0:02:40]}  h5 {[%clk 0:02:37]} 13. Qg3 {[%clk 0:02:32]}  Ng4 {[%clk 0:02:30]} 14. Bxg4 {[%clk 0:02:32]}  hxg4 {[%clk 0:02:31]} 15. Qxg4 {[%clk 0:02:33]}  O-O-O {[%clk 0:02:30]} 16. h3 {[%clk 0:02:27]}  Qe7 {[%clk 0:02:22]} 17. f5 {[%clk 0:02:26]}  Rh4 {[%clk 0:02:19]} 18. Qg5 {[%clk 0:01:59]}  exf5 {[%clk 0:01:57]} 19. Qxf5+ {[%clk 0:01:49]}  Qe6 {[%clk 0:01:30]} 20. Qxc5 {[%clk 0:01:37]}  Rxh3+ {[%clk 0:01:27]} 21. Kg1 {[%clk 0:01:37]}  g6 {[%clk 0:00:42]} 22. gxh3 {[%clk 0:01:34]}  Qxh3 {[%clk 0:00:43]} 23. Qg5 {[%clk 0:01:27]}  Rh8 {[%clk 0:00:36]} 24. Qg2 {[%clk 0:01:26]}  Qe6 {[%clk 0:00:33]} 25. Bf4 {[%clk 0:01:25]}  c5 {[%clk 0:00:32]} 26. Nd5 {[%clk 0:01:25]}  Rh4 {[%clk 0:00:24]} 27. Rad1 {[%clk 0:01:13]}  Rg4 {[%clk 0:00:24]} 28. Nb6+ {[%clk 0:01:10]}  Qxb6 {[%clk 0:00:22]} 29. Qxg4+ {[%clk 0:01:09]}  f5 {[%clk 0:00:22]} 30. exf5 {[%clk 0:01:08]}  g5 {[%clk 0:00:19]} 31. f6+ {[%clk 0:01:07]} 1-0


[Site "https://www.chess.com"]

[Event "Titled Tuesday Blitz November 01 Late 2022"]
[White "Rustemov, Alexander"]
[Black "Paravyan, David"]
[WhiteFideId "4119002"]
[BlackFideId "4194985"]
[WhiteElo "2930"]
[BlackElo "3025"]
[Result "0-1"]
[Round "09"]
[TimeControl "180+1"]
[Date "2022.11.01"]
[WhiteClock "0:00:01"]
[BlackClock "0:00:09"]

1. d4 {[%clk 0:03:00]}  Nf6 {[%clk 0:02:58]} 2. Nf3 {[%clk 0:03:01]}  g6 {[%clk 0:02:58]} 3. g3 {[%clk 0:03:01]}  Bg7 {[%clk 0:02:58]} 4. Bg2 {[%clk 0:03:01]}  d5 {[%clk 0:02:59]} 5. O-O {[%clk 0:03:02]}  O-O {[%clk 0:02:59]} 6. Bf4 {[%clk 0:03:02]}  c5 {[%clk 0:02:56]} 7. c3 {[%clk 0:02:52]}  cxd4 {[%clk 0:02:55]} 8. cxd4 {[%clk 0:02:52]}  Ne4 {[%clk 0:02:55]} 9. Be5 {[%clk 0:02:50]}  Nc6 {[%clk 0:02:53]} 10. Bxg7 {[%clk 0:02:49]}  Kxg7 {[%clk 0:02:54]} 11. Qb3 {[%clk 0:02:32]}  Qd6 {[%clk 0:02:44]} 12. Nc3 {[%clk 0:02:31]}  Nxc3 {[%clk 0:02:44]} 13. Qxc3 {[%clk 0:02:31]}  Bf5 {[%clk 0:02:42]} 14. Rfc1 {[%clk 0:02:26]}  Rfc8 {[%clk 0:02:41]} 15. Qc5 {[%clk 0:02:26]}  Qxc5 {[%clk 0:02:33]} 16. dxc5 {[%clk 0:02:26]}  e5 {[%clk 0:02:21]} 17. e3 {[%clk 0:02:18]}  Be4 {[%clk 0:02:11]} 18. a3 {[%clk 0:02:17]}  a5 {[%clk 0:01:57]} 19. Nd2 {[%clk 0:02:16]}  Bxg2 {[%clk 0:01:56]} 20. Kxg2 {[%clk 0:02:17]}  a4 {[%clk 0:01:53]} 21. e4 {[%clk 0:02:13]}  dxe4 {[%clk 0:01:52]} 22. Nxe4 {[%clk 0:02:13]}  Nd4 {[%clk 0:01:52]} 23. Nd6 {[%clk 0:02:13]}  Rc6 {[%clk 0:01:47]} 24. Rc4 {[%clk 0:02:11]}  b5 {[%clk 0:01:39]} 25. Rc3 {[%clk 0:02:09]}  Nb3 {[%clk 0:01:34]} 26. Re1 {[%clk 0:02:04]}  f6 {[%clk 0:01:33]} 27. Nxb5 {[%clk 0:02:03]}  Rxc5 {[%clk 0:01:32]} 28. Rxc5 {[%clk 0:02:03]}  Nxc5 {[%clk 0:01:33]} 29. Rc1 {[%clk 0:02:03]}  Nd3 {[%clk 0:01:31]} 30. Rc7+ {[%clk 0:02:03]}  Kg8 {[%clk 0:01:28]} 31. Nd6 {[%clk 0:01:56]}  f5 {[%clk 0:01:22]} 32. Rb7 {[%clk 0:01:50]}  e4 {[%clk 0:01:20]} 33. b3 {[%clk 0:01:42]}  Nc5 {[%clk 0:01:15]} 34. Rc7 {[%clk 0:01:32]}  Nxb3 {[%clk 0:01:13]} 35. h4 {[%clk 0:01:19]}  Rd8 {[%clk 0:01:09]} 36. Nf7 {[%clk 0:01:18]}  Rd2 {[%clk 0:01:07]} 37. Kf1 {[%clk 0:01:15]}  Ra2 {[%clk 0:01:02]} 38. h5 {[%clk 0:01:08]}  gxh5 {[%clk 0:00:59]} 39. Nh6+ {[%clk 0:01:07]}  Kf8 {[%clk 0:00:59]} 40. Nxf5 {[%clk 0:01:05]}  Rxa3 {[%clk 0:00:55]} 41. Ra7 {[%clk 0:00:51]}  Ra1+ {[%clk 0:00:54]} 42. Kg2 {[%clk 0:00:33]}  a3 {[%clk 0:00:55]} 43. Ne3 {[%clk 0:00:33]}  Nd4 {[%clk 0:00:40]} 44. Ra4 {[%clk 0:00:29]}  a2 {[%clk 0:00:31]} 45. Ra7 {[%clk 0:00:09]}  Nb5 {[%clk 0:00:18]} 46. Ra8+ {[%clk 0:00:09]}  Kf7 {[%clk 0:00:17]} 47. Nc2 {[%clk 0:00:09]}  Rd1 {[%clk 0:00:12]} 48. Rxa2 {[%clk 0:00:09]}  Rd2 {[%clk 0:00:12]} 49. Nb4 {[%clk 0:00:09]}  e3 {[%clk 0:00:13]} 50. Kf3 {[%clk 0:00:08]}  e2 {[%clk 0:00:09]} 51. Ra1 {[%clk 0:00:01]}  Rd1 {[%clk 0:00:09]} 52. Kxe2 {[%clk 0:00:02]}  Rxa1 {[%clk 0:00:09]} 53. Nd3 {[%clk 0:00:02]}  Ra2+ {[%clk 0:00:09]} 54. Ke3 {[%clk 0:00:02]}  Kf6 {[%clk 0:00:08]} 55. Nf4 {[%clk 0:00:03]}  Ra3+ {[%clk 0:00:08]} 56. Ke4 {[%clk 0:00:02]}  Nc3+ {[%clk 0:00:09]} 57. Kd4 {[%clk 0:00:01]}  Kg5 {[%clk 0:00:09]} 58. Ne6+ {[%clk 0:00:01]}  Kg4 {[%clk 0:00:09]} 59. Ng7 {[%clk 0:00:01]}  Ne2+ {[%clk 0:00:09]} 0-1


[Site "https://www.chess.com"]

[Event "Titled Tuesday Blitz November 01 Late 2022"]
[White "Sanal, Vahap"]
[Black "Drygalov, Sergey"]
[WhiteFideId "6300545"]
[BlackFideId "24171743"]
[WhiteElo "2574"]
[BlackElo "2528"]
[Result "1-0"]
[Round "09"]
[TimeControl "180+1"]
[Date "2022.11.01"]
[WhiteClock "0:01:51"]
[BlackClock "0:01:20"]

1. e4 {[%clk 0:03:00]}  c5 {[%clk 0:02:59]} 2. Nf3 {[%clk 0:02:58]}  d6 {[%clk 0:03:00]} 3. d4 {[%clk 0:02:58]}  cxd4 {[%clk 0:03:00]} 4. Nxd4 {[%clk 0:02:58]}  Nf6 {[%clk 0:03:00]} 5. Nc3 {[%clk 0:02:58]}  a6 {[%clk 0:03:01]} 6. a3 {[%clk 0:02:55]}  e5 {[%clk 0:03:00]} 7. Nf5 {[%clk 0:02:55]}  d5 {[%clk 0:03:01]} 8. Bg5 {[%clk 0:02:54]}  d4 {[%clk 0:03:00]} 9. Bxf6 {[%clk 0:02:55]}  gxf6 {[%clk 0:03:01]} 10. Nb1 {[%clk 0:02:55]}  Bxf5 {[%clk 0:03:00]} 11. exf5 {[%clk 0:02:55]}  Qd5 {[%clk 0:02:59]} 12. Qd3 {[%clk 0:02:54]}  Nd7 {[%clk 0:02:57]} 13. Nd2 {[%clk 0:02:51]}  Nc5 {[%clk 0:02:46]} 14. Qh3 {[%clk 0:02:51]}  Rg8 {[%clk 0:02:40]} 15. Qxh7 {[%clk 0:02:38]}  Rg7 {[%clk 0:02:37]} 16. Qh4 {[%clk 0:02:35]}  O-O-O {[%clk 0:02:15]} 17. b4 {[%clk 0:02:30]}  d3 {[%clk 0:02:06]} 18. c4 {[%clk 0:02:27]}  Qc6 {[%clk 0:02:06]} 19. bxc5 {[%clk 0:02:25]}  Bxc5 {[%clk 0:02:07]} 20. Qe4 {[%clk 0:02:18]}  Qc7 {[%clk 0:02:00]} 21. Bxd3 {[%clk 0:02:10]}  Rd4 {[%clk 0:01:59]} 22. Qf3 {[%clk 0:02:06]}  Qd7 {[%clk 0:01:43]} 23. Ne4 {[%clk 0:02:05]}  Bb6 {[%clk 0:01:38]} 24. Ke2 {[%clk 0:01:57]}  Qa4 {[%clk 0:01:26]} 25. Rhb1 {[%clk 0:01:53]}  Ba7 {[%clk 0:01:20]} 26. Rxb7 {[%clk 0:01:51]} 1-0


[Site "https://www.chess.com"]

[Event "Titled Tuesday Blitz November 01 Late 2022"]
[White "Sargsyan, Anna M."]
[Black "Winterberg, Lukas"]
[WhiteFideId "13308130"]
[BlackFideId "24622702"]
[WhiteElo "2284"]
[BlackElo "2349"]
[Result "1-0"]
[Round "09"]
[TimeControl "180+1"]
[Date "2022.11.02"]
[WhiteClock "0:00:08"]
[BlackClock "0:00:01"]

1. d4 {[%clk 0:02:54]}  Nf6 {[%clk 0:02:59]} 2. c4 {[%clk 0:02:53]}  e6 {[%clk 0:03:00]} 3. Nf3 {[%clk 0:02:52]}  d5 {[%clk 0:03:00]} 4. Nc3 {[%clk 0:02:53]}  c5 {[%clk 0:02:59]} 5. cxd5 {[%clk 0:02:51]}  exd5 {[%clk 0:03:00]} 6. Bg5 {[%clk 0:02:51]}  Be6 {[%clk 0:02:57]} 7. g3 {[%clk 0:02:50]}  Nc6 {[%clk 0:02:53]} 8. Bg2 {[%clk 0:02:51]}  Be7 {[%clk 0:02:46]} 9. O-O {[%clk 0:02:49]}  O-O {[%clk 0:02:45]} 10. Rc1 {[%clk 0:02:43]}  c4 {[%clk 0:02:41]} 11. b3 {[%clk 0:02:37]}  cxb3 {[%clk 0:02:33]} 12. Qxb3 {[%clk 0:02:32]}  h6 {[%clk 0:02:25]} 13. Bxf6 {[%clk 0:02:27]}  Bxf6 {[%clk 0:02:26]} 14. Qxb7 {[%clk 0:02:09]}  Nxd4 {[%clk 0:02:25]} 15. Nxd4 {[%clk 0:02:08]}  Bxd4 {[%clk 0:02:26]} 16. Nxd5 {[%clk 0:01:51]}  Rb8 {[%clk 0:02:20]} 17. Qc6 {[%clk 0:01:45]}  Bxd5 {[%clk 0:01:43]} 18. Qxd5 {[%clk 0:01:40]}  Qf6 {[%clk 0:01:35]} 19. Rc6 {[%clk 0:01:32]}  Rfd8 {[%clk 0:01:21]} 20. Rxf6 {[%clk 0:01:26]}  Rxd5 {[%clk 0:01:21]} 21. Rxf7 {[%clk 0:01:24]}  Rd6 {[%clk 0:00:50]} 22. Re7 {[%clk 0:01:15]}  Rb2 {[%clk 0:00:49]} 23. a4 {[%clk 0:00:56]}  Rb4 {[%clk 0:00:35]} 24. Re4 {[%clk 0:00:46]}  a5 {[%clk 0:00:30]} 25. Rc1 {[%clk 0:00:27]}  Kf7 {[%clk 0:00:16]} 26. Bf3 {[%clk 0:00:20]}  Kf6 {[%clk 0:00:15]} 27. Kg2 {[%clk 0:00:19]}  Be5 {[%clk 0:00:12]} 28. Rc8 {[%clk 0:00:15]}  Rxe4 {[%clk 0:00:11]} 29. Bxe4 {[%clk 0:00:16]}  Rd4 {[%clk 0:00:11]} 30. Bc6 {[%clk 0:00:14]}  Bd6 {[%clk 0:00:09]} 31. Bb5 {[%clk 0:00:14]}  Bb4 {[%clk 0:00:08]} 32. Rc6+ {[%clk 0:00:12]}  Ke7 {[%clk 0:00:07]} 33. Kf3 {[%clk 0:00:12]}  Rd2 {[%clk 0:00:07]} 34. Rc7+ {[%clk 0:00:12]}  Kf6 {[%clk 0:00:07]} 35. h4 {[%clk 0:00:10]}  Rb2 {[%clk 0:00:05]} 36. g4 {[%clk 0:00:10]}  g5 {[%clk 0:00:05]} 37. Rc6+ {[%clk 0:00:08]}  Kg7 {[%clk 0:00:05]} 38. h5 {[%clk 0:00:09]}  Rd2 {[%clk 0:00:04]} 39. Bd3 {[%clk 0:00:08]}  Bf8 {[%clk 0:00:02]} 40. Rg6+ {[%clk 0:00:08]}  Kf7 {[%clk 0:00:03]} 41. Ra6 {[%clk 0:00:07]}  Rb2 {[%clk 0:00:01]} 42. Rxa5 {[%clk 0:00:07]}  Rb4 {[%clk 0:00:02]} 43. Rf5+ {[%clk 0:00:07]}  Ke7 {[%clk 0:00:01]} 44. a5 {[%clk 0:00:08]}  Ra4 {[%clk 0:00:01]} 45. a6 {[%clk 0:00:08]} 1-0


[Site "https://www.chess.com"]

[Event "Titled Tuesday Blitz November 01 Late 2022"]
[White "Seo, Jung Min"]
[Black "Han, Yichen"]
[WhiteFideId "1734687"]
[BlackFideId "1054430"]
[WhiteElo "2455"]
[BlackElo "2323"]
[Result "1-0"]
[Round "09"]
[TimeControl "180+1"]
[Date "2022.11.01"]
[WhiteClock "0:01:06"]
[BlackClock "0:00:02"]

1. e4 {[%clk 0:03:00]}  e5 {[%clk 0:02:58]} 2. Nf3 {[%clk 0:03:01]}  Nc6 {[%clk 0:02:58]} 3. Bc4 {[%clk 0:03:01]}  Nf6 {[%clk 0:02:56]} 4. d3 {[%clk 0:03:01]}  Be7 {[%clk 0:02:55]} 5. O-O {[%clk 0:02:55]}  O-O {[%clk 0:02:55]} 6. Re1 {[%clk 0:02:55]}  d6 {[%clk 0:02:55]} 7. a4 {[%clk 0:02:54]}  Kh8 {[%clk 0:02:55]} 8. c3 {[%clk 0:02:51]}  Ng8 {[%clk 0:02:54]} 9. d4 {[%clk 0:02:51]}  f5 {[%clk 0:02:43]} 10. dxe5 {[%clk 0:02:43]}  fxe4 {[%clk 0:02:37]} 11. Rxe4 {[%clk 0:02:43]}  Rxf3 {[%clk 0:02:11]} 12. Qxf3 {[%clk 0:02:41]}  d5 {[%clk 0:02:09]} 13. Bxd5 {[%clk 0:02:02]}  Qxd5 {[%clk 0:02:09]} 14. Qe2 {[%clk 0:02:03]}  Bf5 {[%clk 0:02:01]} 15. Rf4 {[%clk 0:01:57]}  Bg6 {[%clk 0:01:48]} 16. Na3 {[%clk 0:01:56]}  Nxe5 {[%clk 0:01:36]} 17. Be3 {[%clk 0:01:52]}  Bf6 {[%clk 0:01:08]} 18. Nb5 {[%clk 0:01:49]}  Qf7 {[%clk 0:00:54]} 19. Bd4 {[%clk 0:01:44]}  Nd3 {[%clk 0:00:47]} 20. Rf3 {[%clk 0:01:32]}  Re8 {[%clk 0:00:39]} 21. Qd2 {[%clk 0:01:31]}  a6 {[%clk 0:00:22]} 22. Bxf6 {[%clk 0:01:16]}  Nxf6 {[%clk 0:00:19]} 23. Nd4 {[%clk 0:01:11]}  Ne5 {[%clk 0:00:18]} 24. Re3 {[%clk 0:01:11]}  c5 {[%clk 0:00:12]} 25. Nf3 {[%clk 0:01:08]}  Nxf3+ {[%clk 0:00:05]} 26. Rxf3 {[%clk 0:01:08]}  Be4 {[%clk 0:00:02]} 27. Re3 {[%clk 0:01:06]} 1-0


[Site "https://www.chess.com"]

[Event "Titled Tuesday Blitz November 01 Late 2022"]
[White "Tan, Ralph"]
[Black "O`Gorman, Tom"]
[WhiteFideId "30966590"]
[BlackFideId "2508249"]
[WhiteElo "2059"]
[BlackElo "2271"]
[Result "0-1"]
[Round "09"]
[TimeControl "180+1"]
[Date "2022.11.02"]
[WhiteClock "0:00:04"]
[BlackClock "0:00:18"]

1. Nf3 {[%clk 0:03:00]}  Nf6 {[%clk 0:02:58]} 2. g3 {[%clk 0:03:01]}  g6 {[%clk 0:02:59]} 3. Bg2 {[%clk 0:03:01]}  Bg7 {[%clk 0:02:59]} 4. O-O {[%clk 0:03:01]}  O-O {[%clk 0:03:00]} 5. d4 {[%clk 0:03:01]}  d6 {[%clk 0:03:01]} 6. c4 {[%clk 0:03:02]}  Nc6 {[%clk 0:03:01]} 7. Nc3 {[%clk 0:03:02]}  a6 {[%clk 0:03:02]} 8. b3 {[%clk 0:03:02]}  Rb8 {[%clk 0:03:02]} 9. Bb2 {[%clk 0:03:03]}  b5 {[%clk 0:03:02]} 10. cxb5 {[%clk 0:03:00]}  axb5 {[%clk 0:03:03]} 11. Rc1 {[%clk 0:03:00]}  b4 {[%clk 0:02:55]} 12. Na4 {[%clk 0:02:56]}  Bd7 {[%clk 0:02:56]} 13. Re1 {[%clk 0:02:26]}  Na5 {[%clk 0:02:15]} 14. e4 {[%clk 0:02:19]}  Bxa4 {[%clk 0:02:14]} 15. bxa4 {[%clk 0:02:19]}  c6 {[%clk 0:02:15]} 16. Nd2 {[%clk 0:02:11]}  d5 {[%clk 0:02:13]} 17. e5 {[%clk 0:02:08]}  Nd7 {[%clk 0:02:12]} 18. Nb3 {[%clk 0:02:08]}  Nc4 {[%clk 0:02:11]} 19. Ba1 {[%clk 0:02:03]}  e6 {[%clk 0:02:10]} 20. Bf1 {[%clk 0:01:46]}  Ndb6 {[%clk 0:01:31]} 21. a5 {[%clk 0:01:44]}  Na4 {[%clk 0:01:31]} 22. Bxc4 {[%clk 0:01:41]}  dxc4 {[%clk 0:01:32]} 23. Rxc4 {[%clk 0:01:41]}  Qd5 {[%clk 0:01:32]} 24. Qc2 {[%clk 0:01:38]}  Rfc8 {[%clk 0:01:13]} 25. Rc1 {[%clk 0:01:28]}  Bh6 {[%clk 0:01:11]} 26. Rd1 {[%clk 0:01:22]}  Bf8 {[%clk 0:00:51]} 27. Qe2 {[%clk 0:01:09]}  Rd8 {[%clk 0:00:47]} 28. Rdc1 {[%clk 0:01:03]}  Bh6 {[%clk 0:00:46]} 29. R1c2 {[%clk 0:01:02]}  Rbc8 {[%clk 0:00:47]} 30. h4 {[%clk 0:00:59]}  Bf8 {[%clk 0:00:46]} 31. h5 {[%clk 0:00:57]}  Qb5 {[%clk 0:00:45]} 32. Qf1 {[%clk 0:00:24]}  Qd5 {[%clk 0:00:42]} 33. Qe2 {[%clk 0:00:22]}  Be7 {[%clk 0:00:41]} 34. a6 {[%clk 0:00:17]}  Qb5 {[%clk 0:00:40]} 35. Qf1 {[%clk 0:00:17]}  Qxa6 {[%clk 0:00:39]} 36. hxg6 {[%clk 0:00:14]}  hxg6 {[%clk 0:00:39]} 37. Rc1 {[%clk 0:00:08]}  Qb5 {[%clk 0:00:38]} 38. R4c2 {[%clk 0:00:08]}  Qd5 {[%clk 0:00:34]} 39. Qg2 {[%clk 0:00:08]}  Qb5 {[%clk 0:00:32]} 40. Qf1 {[%clk 0:00:08]}  Qb7 {[%clk 0:00:31]} 41. Qd3 {[%clk 0:00:08]}  Rd5 {[%clk 0:00:31]} 42. Qe4 {[%clk 0:00:08]}  Qb5 {[%clk 0:00:28]} 43. Kg2 {[%clk 0:00:08]}  Nb6 {[%clk 0:00:27]} 44. Qf3 {[%clk 0:00:08]}  Rdd8 {[%clk 0:00:26]} 45. Nc5 {[%clk 0:00:07]}  Nd5 {[%clk 0:00:25]} 46. Ne4 {[%clk 0:00:07]}  Ra8 {[%clk 0:00:23]} 47. Rh1 {[%clk 0:00:08]}  Ra3 {[%clk 0:00:22]} 48. Qg4 {[%clk 0:00:07]}  Bf8 {[%clk 0:00:18]} 49. Qh3 {[%clk 0:00:07]}  Bg7 {[%clk 0:00:18]} 50. Qh7+ {[%clk 0:00:07]}  Kf8 {[%clk 0:00:19]} 51. Ng5 {[%clk 0:00:07]}  Qd3 {[%clk 0:00:17]} 52. Rxc6 {[%clk 0:00:04]}  Qe2 {[%clk 0:00:16]} 53. Qh4 {[%clk 0:00:04]}  Ne3+ {[%clk 0:00:16]} 54. Kh2 {[%clk 0:00:04]}  Qxf2+ {[%clk 0:00:17]} 55. Kh3 {[%clk 0:00:04]}  Qg2# {[%clk 0:00:18]} 0-1


[Site "https://www.chess.com"]

[Event "Titled Tuesday Blitz November 01 Late 2022"]
[White "Ter-Sahakyan, Samvel"]
[Black "Yanchenko, Roman"]
[WhiteFideId "13302531"]
[BlackFideId "4137329"]
[WhiteElo "2947"]
[BlackElo "2796"]
[Result "0-1"]
[Round "09"]
[TimeControl "180+1"]
[Date "2022.11.01"]
[WhiteClock "0:00:06"]
[BlackClock "0:01:23"]

1. e4 {[%clk 0:03:00]}  e6 {[%clk 0:03:00]} 2. d4 {[%clk 0:03:00]}  d5 {[%clk 0:03:01]} 3. Nc3 {[%clk 0:03:00]}  Bb4 {[%clk 0:03:00]} 4. e5 {[%clk 0:03:01]}  Ne7 {[%clk 0:03:00]} 5. a3 {[%clk 0:03:00]}  Bxc3+ {[%clk 0:03:01]} 6. bxc3 {[%clk 0:03:01]}  b6 {[%clk 0:03:01]} 7. h4 {[%clk 0:02:56]}  Ba6 {[%clk 0:03:01]} 8. Bxa6 {[%clk 0:02:54]}  Nxa6 {[%clk 0:03:02]} 9. h5 {[%clk 0:02:54]}  h6 {[%clk 0:03:02]} 10. Qg4 {[%clk 0:02:49]}  Kf8 {[%clk 0:03:03]} 11. Rh3 {[%clk 0:02:45]}  c5 {[%clk 0:03:03]} 12. Ne2 {[%clk 0:02:37]}  Rc8 {[%clk 0:03:02]} 13. Rf3 {[%clk 0:02:01]}  Kg8 {[%clk 0:03:02]} 14. Ra2 {[%clk 0:01:49]}  cxd4 {[%clk 0:02:56]} 15. cxd4 {[%clk 0:01:49]}  Rc4 {[%clk 0:02:55]} 16. c3 {[%clk 0:01:47]}  Nb8 {[%clk 0:02:53]} 17. Qf4 {[%clk 0:01:34]}  Qe8 {[%clk 0:02:53]} 18. g4 {[%clk 0:01:30]}  Nbc6 {[%clk 0:02:53]} 19. Ng3 {[%clk 0:01:21]}  Kh7 {[%clk 0:02:30]} 20. g5 {[%clk 0:01:12]}  hxg5 {[%clk 0:02:23]} 21. Qxg5 {[%clk 0:01:13]}  Kg8 {[%clk 0:02:23]} 22. Kf1 {[%clk 0:01:06]}  Qd8 {[%clk 0:02:14]} 23. Kg2 {[%clk 0:00:57]}  Nf5 {[%clk 0:02:08]} 24. Nxf5 {[%clk 0:00:36]}  Qxg5+ {[%clk 0:02:06]} 25. Bxg5 {[%clk 0:00:37]}  exf5 {[%clk 0:02:07]} 26. h6 {[%clk 0:00:38]}  Rh7 {[%clk 0:01:54]} 27. Re2 {[%clk 0:00:37]}  Kf8 {[%clk 0:01:41]} 28. e6 {[%clk 0:00:35]}  f6 {[%clk 0:01:41]} 29. Bf4 {[%clk 0:00:29]}  Ke8 {[%clk 0:01:26]} 30. Bd2 {[%clk 0:00:23]}  g6 {[%clk 0:01:25]} 31. Rg3 {[%clk 0:00:22]}  Ne7 {[%clk 0:01:25]} 32. Bf4 {[%clk 0:00:18]}  Rc6 {[%clk 0:01:25]} 33. Bd2 {[%clk 0:00:16]}  g5 {[%clk 0:01:24]} 34. Rh3 {[%clk 0:00:17]}  f4 {[%clk 0:01:24]} 35. Kf1 {[%clk 0:00:11]}  Nf5 {[%clk 0:01:24]} 36. Re1 {[%clk 0:00:06]}  Ke7 {[%clk 0:01:23]} 0-1


[Site "https://www.chess.com"]